Cogmind - Beta 17 @@@ ROGUE MODE // 2026.07.28 @ 01:19:54 Player: gortmind Result: Destroyed by WL-RFL(R) with Subdweller Laser Performance ------------- Evolutions (0) 0 Regions Visited (2) 400 Robots Destroyed (17) 85 Value Destroyed (407) 407 Prototype IDs (0) 0 Alien Tech Used (0) 0 Bonus (0) 0 TOTAL SCORE: 892 Bonus ------- None Cogmind --------- Core Integrity 0/250 Matter 300/300 Energy 69/100 System Corruption 0% Temperature Cool (6) Movement Rolling (95) Location -10/Subcaves Parts ------- > --- POWER (1) -------- (None) > --- PROPULSION (2) --- Wheel Subdweller Monowheel > --- UTILITY (2) ------ Medium Storage Unit Signal Interpreter > --- WEAPON (2) ------- Subdweller Laser Subdweller Laser > --- INVENTORY (10) --- Aluminum Leg Heat Sink Core Shielding Core Shielding Propulsion Shielding Scrap Shield Small Laser Light Assault Rifle Bore Cannon Peak State ------------ > --- POWER ------------ Light Ion Engine > --- PROPULSION ------- Aluminum Leg > --- UTILITY ---------- Medium Storage Unit Signal Interpreter > --- WEAPON ----------- Subdweller Laser Bore Cannon > --- INVENTORY -------- Wheel Heat Sink Core Shielding Core Shielding Propulsion Shielding Scrap Shield Small Laser Light Assault Rifle [Rating: 12] Favorites ----------- Power Light Ion Engine Engine Light Ion Engine Power Core Light Nuclear Core Propulsion Aluminum Leg Leg Aluminum Leg Wheel Wheel Utility Medium Storage Unit Storage Medium Storage Unit Processor Signal Interpreter Protection Core Shielding Weapon Small Laser Energy Gun Small Laser Ballistic Gun Light Assault Rifle Ballistic Cannon Bore Cannon Build | -11 -10 -10 ------- Run | Yrd Mat Sub Slots Evolved . | . . . Power . | . . . Propulsion . | . . . Utility . | . . . Weapon . | . . . Parts Attached 21 | 4 13 4 Power 3 | 1 2 . Engine 2 | 1 1 . Core 1 | . 1 . Reactor . | . . . Propulsion 5 | 2 2 1 Treads . | . . . Leg 2 | . 2 . Wheel 3 | 2 . 1 Hover . | . . . Flight . | . . . Utility 5 | 1 4 . Device . | . . . Storage 2 | 1 1 . Processor 2 | . 2 . Hackware . | . . . Protection 1 | . 1 . Artifact . | . . . Weapon 8 | . 5 3 Energy Gun 6 | . 4 2 Energy Cannon . | . . . Ballistic Gun 1 | . 1 . Ballistic Cannon 1 | . . 1 Launcher . | . . . Special Weapon . | . . . Impact Weapon . | . . . Slashing Weapon . | . . . Piercing Weapon . | . . . Special Melee Weapon . | . . . Unidentified Prototypes . | . . . Parts Lost 8 | . 4 4 Power 3 | . 2 1 Propulsion 2 | . 1 1 Utility . | . . . Weapon 3 | . 1 2 Highest Loss Streak 3 | . 3 3 To Critical Strikes . | . . . Average Backups 5 | . 4 8 Power . | . . . Propulsion . | . . 1 Utility 3 | . 2 4 Weapon 1 | . . 2 Tool/Special . | . . . Unused Backups 4 | . . 4 Power . | . . . Propulsion . | . . . Utility 4 | . . 4 Weapon . | . . . Tool/Special . | . . . Average Slot Usage (%) 94 | . 95 92 Engine 7 | . 6 9 Core 4 | . 6 . Leg 17 | . 21 10 Wheel 9 | . 5 16 Storage 14 | . 14 14 Processor 10 | . 8 14 Protection 3 | . 4 . Energy Gun 24 | . 23 26 Ballistic Gun 2 | . 3 . Peak Build Rating 12 | 4 10 12 Average Rating 8 | 2 8 9 On Entrance 4 | . 4 8 Avg Prop Armor Cover (%) . | . . . Naked Turns . | . . . Heaviest Build 26 | 8 20 26 Greatest Support 30 | 26 26 30 Greatest Overweight (x) 2 | 2 1 2 Average Overweight (x) . | . . . Largest Inventory Capacity 10 | 8 10 10 Average Capacity 9 | 7 9 10 Most Carried 10 | 2 7 10 Average Carried 5 | . 4 9 Final Capacity 10 | 8 10 10 Final Carried 10 | 1 7 10 Class Distribution -------------------- 57% | Mutant 42% | Scavenger-Mutant Dominant Class ---------------- Scavenger-Mutant | -10/Materials Mutant | -10/Subcaves Resources | -11 -10 -10 ----------- Run | Yrd Mat Sub Matter Collected 455 | 60 326 69 Remotely . | . . . Salvage Created 524 | . 385 139 Parts 31 | . 24 7 Haulers Intercepted 1 | . 1 . Recyclers Shooed . | . . . Parts Field Recycled . | . . . Retrieved Matter . | . . . Parts Self-Destructed 7 | . . 7 Prevented . | . . . Parts Restored . | . . . Kills | -11 -10 -10 ------- Run | Yrd Mat Sub Combat Hostiles Destroyed 16 | . 12 4 Guns 15 | . 12 3 Cannons 1 | . . 1 Classes Destroyed 5 | . 3 2 Hauler 1 | . 1 . Swarmer 8 | . 6 2 Grunt 6 | . 6 . Sentry 1 | . . 1 Subdweller 1 | . . 1 Best Kill Streak 3 | . 3 2 Combat Bots Only 3 | . 3 2 Max Kills in Single Turn 1 | . 1 1 Gunslinging . | . . . Exploded . | . . . Melee . | . . . Uniques/NPCs Destroyed . | . . . Combat | -11 -10 -10 -------- Run | Yrd Mat Sub Hostile Shots Fired 104 | . 76 28 Missed 27 | . 17 10 Hits 77 | . 59 18 Projectile 77 | . 59 18 Damage Taken 1008 | . 669 339 Core 259 | . 147 112 Absorbed by Shields . | . . . Redirected to Shielding 9 | . 9 . Regen/Repaired (Parts) 23 | . 23 . Core Remaining (%) 100 | 100 . . Volleys Fired 74 | . 54 20 Largest 2 | . 2 2 Hottest 120 | . 105 120 Shots Fired 136 | . 99 37 Gun 134 | . 99 35 Cannon 2 | . . 2 Launcher . | . . . Special . | . . . Kinetic 28 | . 26 2 Thermal 108 | . 73 35 Explosive . | . . . Electromagnetic . | . . . Robot Hit Streak 15 | . 8 15 Robot Miss Streak 6 | . 6 4 Penetration Max . | . . . Secondary Targets 3 | . 3 . Max Gunslinging Chain 1 | . 1 . Shots Hit Robots 80 | . 54 26 Core Hits 28 | . 22 6 Critical Kills 1 | . . 1 Critical Parts Destroyed . | . . . Critical Strikes 3 | . 2 1 Burn 2 | . 2 . Destroy 1 | . . 1 Melee Attacks . | . . . Impact . | . . . Slashing . | . . . Piercing . | . . . Sneak Attacks . | . . . Combat Hostiles . | . . . Follow-up Attacks . | . . . Damage Inflicted 1068 | . 656 412 Guns 1004 | . 650 354 Cannons 58 | . . 58 Explosions . | . . . Melee . | . . . Ramming 6 | . 6 . Kinetic 173 | . 115 58 Thermal 889 | . 535 354 Explosive . | . . . Electromagnetic . | . . . Impact . | . . . Slashing . | . . . Piercing . | . . . Highest Corruption . | . . . Average Corruption . | . . . Corruption Purged . | . . . Corruption Blocked . | . . . Overload Shots . | . . . Overflow Damage . | . . . Projectiles . | . . . Explosions . | . . . Melee . | . . . Knockbacks . | . . . Impact . | . . . Kinetic . | . . . Secondary . | . . . Self-Inflicted Damage . | . . . Shots . | . . . Rammed . | . . . Targets Rammed 1 | . 1 . Kicked 1 | . 1 . Crushed . | . . . Highest Temperature 414 | . 414 6 Average Temperature 102 | . 106 3 Received Heat Transfer 393 | . 315 78 Effects 3 | . 3 . Shutdowns 1 | . 1 . Interference 1 | . 1 . Short Circuit 1 | . 1 . Siege Activations . | . . . Martial Activations . | . . . Shielding Activations . | . . . Robots Disrupted . | . . . Combat Hostiles . | . . . Robots Corrupted . | . . . Combat Hostiles . | . . . Parts Fried . | . . . Impact Corruptions . | . . . Robots Melted . | . . . Combat Hostiles . | . . . Parts Melted 3 | . 3 . Heat Transferred 2121 | . 1425 696 Parts Sabotaged . | . . . Parts Stolen . | . . . Parts Stripped . | . . . Power Chain Reactions . | . . . Alert | -11 -10 -10 ------- Run | Yrd Mat Sub Maximum Alert Level . | . . . Low Security (%) 100 | 100 100 . Level 1 . | . . . Level 2 . | . . . Level 3 . | . . . Level 4 . | . . . Level 5 . | . . . High Security . | . . . Max Security . | . . . Peak Influence 95 | . 95 . Initial . | . . . Average 27 | . 28 . Influence Increases 408 | . 348 60 Destroy 0b10 Robot/C 300 | . 240 60 Destroy 0b10 Robot/NC 5 | . 5 . Destroy Leader 52 | . 52 . Successful Hack 18 | . 18 . Disable Machine 15 | . 15 . Destroy Structure 3 | . 3 . Lose Combat Pursuer 15 | . 15 . Influence Decreases 404 | . 328 76 Entered New Map 10 | . . 10 Time Decay 326 | . 270 56 Lost Part 20 | . 10 10 Purge Threat 48 | . 48 . Squads Dispatched 1 | . 1 . Investigation . | . . . Extermination . | . . . Reinforcement 1 | . 1 . Assault . | . . . Garrison . | . . . Intercept . | . . . Searches Triggered . | . . . Construction Impeded . | . . . Haulers Reinforced . | . . . Active Scanning Responses . | . . . Cargo Convoy Interrupts . | . . . Stealth | -11 -10 -10 --------- Run | Yrd Mat Sub Distress Signals 2 | . 2 . Communications Jammed . | . . . Distress Signals . | . . . Times Spotted 37 | . 24 13 Peak Tracking Total 5 | . 5 4 Tactical Retreats 1 | . 1 . Traps | -11 -10 -10 ------- Run | Yrd Mat Sub Traps Triggered . | . . . Indirectly . | . . . Trap Hack Attempts . | . . . Triggered . | . . . Disarmed . | . . . Reprogrammed . | . . . Reused . | . . . Traps Extracted . | . . . Installed . | . . . Triggered . | . . . Machines | -11 -10 -10 ---------- Run | Yrd Mat Sub Machines Disabled 1 | . 1 . Max in Single Turn 1 | . 1 . Machines Repaired . | . . . Machines Dismantled . | . . . Machines Sabotaged . | . . . Overloaded Fab Kills . | . . . Hacking | -11 -10 -10 --------- Run | Yrd Mat Sub Machines Accessed 7 | . 7 . Terminals 4 | . 4 . Fabricators . | . . . Repair Stations 1 | . 1 . Recycling Units 2 | . 2 . Scanalyzers . | . . . Garrison Access . | . . . Total Hacks 18 | . 18 . Successful 12 | . 12 . Failed 6 | . 6 . Catastrophic . | . . . Database Lockouts . | . . . Manual . | . . . Terminals 10 | . 10 . Fabricators . | . . . Repair Stations 6 | . 6 . Recycling Units 2 | . 2 . Scanalyzers . | . . . Garrison Access . | . . . Terminal Hacks 6 | . 6 . Record 2 | . 2 . Alert Level 1 | . 1 . Unreport Threat 1 | . 1 . Hauler Manifests 1 | . 1 . Zone Layout 1 | . 1 . Fabricator Hacks . | . . . Repair Station Hacks 4 | . 4 . Scan Component 2 | . 2 . Repair 2 | . 2 . Recycling Unit Hacks 2 | . 2 . Report Inventory 2 | . 2 . Scanalyzer . | . . . Garrison Access Hacks . | . . . Unauthorized Hacks . | . . . Terminals . | . . . Fabricators . | . . . Repair Stations . | . . . Recycling Units . | . . . Scanalyzers . | . . . Garrison Access . | . . . Data Cores Recovered . | . . . Used . | . . . Hacking Detections 3 | . 3 . Full Trace Events . | . . . Feedback Events . | . . . Feedback Blocked . | . . . Robot Schematics Acquired . | . . . Robots Built . | . . . Authchips . | . . . Time . | . . . Total Robot Build Rating . | . . . Part Schematics Acquired . | . . . Parts Built . | . . . Authchips . | . . . Time . | . . . Total Part Build Rating . | . . . Part Studies Acquired . | . . . Parts Repaired 2 | . 2 . Time 58 | . 58 . Parts Recycled . | . . . Recycled Matter . | . . . Retrieved Matter . | . . . Retrieved Components . | . . . Parts Scanalyzed . | . . . Part Schematics Acquired . | . . . Parts Damaged . | . . . Bothacking | -11 -10 -10 ------------ Run | Yrd Mat Sub Used RIF Installer . | . . . Robots Hacked . | . . . Non-combat . | . . . Combat . | . . . Robot Hacks Applied . | . . . Relay Couplers Released . | . . . Fabnet Peak Effective % . | . . . Robots Rewired . | . . . Allies Hacked . | . . . Hacks Repelled . | . . . Allies | -11 -10 -10 -------- Run | Yrd Mat Sub Total Allies . | . . . Largest Group . | . . . Highest-Rated Group . | . . . Highest-Rated Ally . | . . . Total Orders . | . . . Ally Attacks . | . . . Total Damage . | . . . Kills . | . . . Allies Corrupted . | . . . Allies Melted 1 | . . 1 Intel | -11 -10 -10 ------- Run | Yrd Mat Sub Active Infowar (turns) . | . . . Robot Analysis Total . | . . . Derelict Logs Recovered . | . . . Drone Launches . | . . . Drone Recoveries . | . . . Exploration | -11 -10 -10 ------------- Run | Yrd Mat Sub Turns Passed 1420 | 41 905 474 Spaces Moved 1006 | 35 596 375 Core 13 | 13 . . Treads . | . . . Legs 574 | . 471 103 Wheels 419 | 22 125 272 Hover . | . . . Flight . | . . . Fastest Speed 50 | 50 90 95 Average Speed 110 | 92 114 107 Slowest Speed 260 | 150 190 260 Overloaded Moves . | . . . Propulsion Burnouts . | . . . Robots Hopped . | . . . Potential Cave-ins . | . . . Cave-ins Triggered . | . . . Exploration Rate (%) 39 | 4 90 25 Regions Visited 2 Branch Regions 1 Pre-discovered Areas . | . . . Known Exits Taken 1 | . 1 . Unknown Exits Taken 1 | 1 . . Scrap Searched 2 | . . 2 Spaces Dug . | . . . Terrain Destroyed . | . . . Melee . | . . . Projectile . | . . . AOE . | . . . Terrain Rammed . | . . . Walls Destroyed . | . . . Machines Disabled . | . . . Actions | -11 -10 -10 --------- Run | Yrd Mat Sub Total 1178 | 43 723 412 Wait 44 | . 39 5 Move 1004 | 34 595 375 Hop . | . . . Pick Up 28 | 5 17 6 Fast Attach . | . . . Attach 16 | 4 9 3 Detach . | . . . Swap 9 | . 7 2 Drop 2 | . 1 1 Fire 74 | . 54 20 Melee . | . . . Ram . | . . . Kick 1 | . 1 . Crush . | . . . Escape Stasis . | . . . Rewire . | . . . Trap . | . . . Miscellaneous . | . . . Route ------- -11/Scrapyard -10/Materials (discovered 4 exits: *Mat x3 / *Sub) -10/Subcaves (discovered 1 exit: [*Mat]) History --------- Turn | Location | Event 2 | -11/Scrapyard | Met Revision 17 31 | -11/Scrapyard | Discovered new exit (range 13) 42 | -11/Scrapyard | Entered Materials 213 | -10/Materials | Lost 3 parts (1p1n1w) 477 | -10/Materials | Discovered new exit (range 12) 522 | -10/Materials | Identified exit to Materials 538 | -10/Materials | Build established: Scavenger-Mutant 670 | -10/Materials | Discovered exit to Materials (range 10) 730 | -10/Materials | Repaired Particle Gun 756 | -10/Materials | Repaired Aluminum Leg 861 | -10/Materials | Core integrity fell below 50% 882 | -10/Materials | Discovered exit to Materials (range 12) 895 | -10/Materials | Discovered new exit (range 5) 902 | -10/Materials | Identified exit to Subcaves 947 | -10/Materials | Entered Subcaves 948 | -10/Subcaves | Approached by a straggling Scientist 1055 | -10/Subcaves | Ambushed by swarm of Subdwellers 1087 | -10/Subcaves | Core integrity fell below 20% 1119 | -10/Subcaves | Lost 3 parts (1n2w) 1228 | -10/Subcaves | Discovered new exit (range 14) 1300 | -10/Subcaves | A swath of the cavern ceiling suddenly collapsed 1364 | -10/Subcaves | Shifting Twisted Machinery released Sub. Power Source 1368 | -10/Subcaves | Shifting Twisted Machinery released Mak. Sword 1391 | -10/Subcaves | Build established: Mutant 1421 | -10/Subcaves | Destroyed by WL-RFL(R) with Subdweller Laser Last Messages --------------- 01251_ Found 60 Matter. 01254_ Searching scrap... 01254_ Found Sub. Machine Gun. 01254_ Found 32 Matter. 01268_ S-10 Pest destroyed. 01270_ Lgt. Ion Engine destroyed. 01271_ S-10 Pest destroyed. 01274_ Flight Unit fries itself beyond repair. 01278_ Lgt. Ion Engine fries itself beyond repair. 01300_ Sub. Beam Cannon crushed. A swath of the cavern ceiling suddenly collapses. Sub. Power Source falls loose from the Twisted Machinery. Mak. Sword falls loose from the Twisted Machinery. 01380_ S-10 Pest destroyed. 01385_ Y-45 Defender destroyed. 01390_ Heat Sink fries itself beyond repair. Map ----- +----------------------------------------------------+ | ??????###????????????########### "### #???? | | # ??????????????????????????????#""#?? #??? | | # #??????????????????????????????#"" #?? #??? | | ## ###?????????????????????????????""" #?# #?? | | ?# #?????????????????????????????""" #??# #? | | ?## #???????????????????????????????? #??? #? | | ??? ????????????????????????????????????????? #? | | ??? #???????????????????????????????????????????? | | ??# #???????????????????????????????????????????? | | ?? #???????????????????????????????????????????? | | ##! #????????????????????????????????????????????? | | &%&#?????????????????????????????????????????????? | | &&!#?????????????????????????????????????????????? | | ##?????????????????????????????????????????????? | | ##??????????????????????????????????????????????? | | #??????????????????????????????????????????????? | | %##??????????????????????????????????????????????? | | ##??????????????????????????????????????????????? | | #??????????????????????????????????????????????? | | #??????????????????????????????????????????????? | | #?????????????????????????###??????????????????? | | ##?????????????#?????????? <##?????????????????? | | #?????????????# ??????? <#?????????????????? | | #?????????????? ?##### ???????????????????? | | #????????????#< R # ?????????????????????? | | ##????##??????#< @##?????????????????????? | | #????# ###?####<< ## <#?????????????????????? | | " ###????# ## ##?###< <###???????????????????? | | " ##?????# ### < ## #???????????????? | | " #??????# #???????????????? | | "##??????# ####g#### ## ??????????? | | ###???????### g ##?##?? ???????????? | | #????????????# ##????? ? ?????????????? | | #????????????# #??????????????????????? | | #?####??????## #??????????????????????? | | ###!"####?### ##??????????????????????? | | %% # ### # ## #???????????????????????? | | " ## ##### ??????????????????????? | | "/ # #####???# ????????????????????? | | ""## # #???????# ##???????????????????? | | " ######???????## ##????????????????????? | | #??????????????####?????????????????????? | | ####"""""#???????????????????????????????????????? | | ???#######???????????????????????????????????????? | | ?????????????????????????????????????????????????? | | ?????????????????????????????????????????????????? | | ?????????????????????????????????????????????????? | | ?????????????????????????????????????????????????? | | ?????????????????????????????????????????????????? | | ?????????????????????????????????????????????????? | +----------------------------------------------------+ Best States ------------- Heat Dissipation 25 Energy Generation 14 Energy Capacity 160 Matter Stores 300 Matter Capacity 300 Sight Range 16 Terrain Scan Density 10 Core Shielding 20 Evasion (%) 55 Item Schematics ----------------- None Robot Schematics ------------------ None Fabricated ------------ Nothing Repaired ---------- Aluminum Leg | 74% | -10/Materials Studied --------- None Alien Tech Used ----------------- None Achievements -------------- You Again Challenges ------------ None Game ------ Seed MicrodissipatorSpikedTreads Manual? 0 Play Time 00:23:33 Cumulative 6.2 hours Start 2026.07.28 @ 00:57:46 End 2026.07.28 @ 01:19:54 Sessions 1 Manual Loads 0 Difficulty Rogue Special Mode None Game No. 9 Rogue 9 Adventurer 0 Explorer 0 Win Type - Total 0 Types 0/0/0/0/0/0/0/0/0/0 Lore% 9 Gallery% 8 Achievement% 11 Wizard Run 0 Options --------- Layout 1 ASCII 0 Keyboard 0 Movement Mouse Keybinds 0 Fullscreen 1 Font 48/Smallcaps Map View 50x35 Zoom Use 0% Tactical HUD 1 Map Filters NONE Filters NONE Steam 1 RUN: fbdca4cd-a33f-4dc3-9faf-60da9e58ed5c